{"text_format":"1","workbook":"xlsx","n_sheets":12,"sheets":["Orçamento Av. Brasil (2)","ORÇAMENTO","Volumetria","Memória","Composições","Imagens CAD","M.O. Aterro","ENCARGOS","ESTEIRA (inex)","ESTEIRA","PICKUP","BDI"],"not_rendered":{"charts":0,"images":7,"macros":0,"external_links":6,"defined_names":463,"comments":0,"pivot_tables":0},"unopened":[],"bounds":{"document_bytes":16777216,"sheet_cells":100000,"rows_first":2000,"rows_last":500,"rows_between":2000,"halvings":0,"cell_chars":16384,"cell_head_chars":4096},"cells_cut":0,"cells_raw":0,"read":"whole","date_system":"1900"}

{"sheet":"Orçamento Av. Brasil (2)","index":0,"n_rows":40,"n_cols":9,"rows_kept":40,"cut":false,"hidden":true,"merged":[[0,0,0,8],[1,0,4,4],[1,5,2,8],[3,5,4,8],[5,0,5,8],[6,0,6,8],[7,0,9,0],[7,1,9,2],[7,3,9,3],[7,4,9,4],[7,5,9,5],[7,6,7,8],[8,6,9,6],[8,7,9,7],[10,1,10,8],[12,0,12,7],[13,1,13,8],[16,0,16,7],[17,1,17,8],[22,0,22,7],[23,1,23,8],[25,0,25,7],[27,0,27,7],[30,0,30,8],[31,0,33,8],[34,0,37,8],[38,0,38,8],[39,0,39,8]]}
["Prefeitura Municipal de Lagoa Formosa "]
["Planilha de Quantidades e Preço \nDATA BASE  - PLANILHA REFERENCIA SINAPI 05/2017",null,null,null,null,"CT Nº: "]
[]
[null,null,null,null,null,"ART Nº:  "]
[]
["REFORMA - Quadra Poliesportiva"]
["Bairro Babilônia   - Lagoa Formosa-MG"]
["ITEM","CÓDIGO",null,"DISCRIMINAÇÃO DOS SERVIÇOS","UNID.","QUANT.","PREÇOS"]
[null,null,null,null,null,null,"Unitário","Custo","Custo+BDI(25%)"]
[null,null,null,null,null,null,null,null,0.25]
[1,"ALAMBRADO"]
["1.1","74244/001","SINAPI","ALAMBRADO PARA QUADRA POLIESPORTIVA, ESTRUTURADO POR TUBOS DE ACO GALVANIZADO, COM COSTURA, DIN 2440, DIAMETRO 2\", COM TELA DE ARAME GALVANIZADO, FIO 14 BWG E MALHA QUADRADA 5X5CM","m²",{"$f":"Memória!D8","v":4912},102.82,{"$f":"F12*G12","v":505051.84},{"$f":"H12+(H12*$I$10)","v":631314.8}]
["CUSTO TOTAL DO ÍTEM",null,null,null,null,null,null,null,{"$f":"I12","v":631314.8}]
[2,"PINTURA DE PISO E DEMARCAÇÃO"]
["2.1",41595,"SINAPI","PINTURA ACRILICA DE FAIXAS DE DEMARCACAO EM QUADRA POLIESPORTIVA, 5 CM DE LARGURA","m",{"$f":"memória!#REF!","v":{"$error":"#VALUE!"}},8.2,{"$f":"F15*G15","v":{"$error":"#VALUE!"}},{"$f":"H15+H15*$I$10","v":{"$error":"#VALUE!"}}]
["2.2","74245/001","SINAPI","PINTURA ACRILICA EM PISO CIMENTADO DUAS DEMAOS","m²",{"$f":"memória!#REF!","v":{"$error":"#VALUE!"}},10.55,{"$f":"F16*G16","v":{"$error":"#VALUE!"}},{"$f":"H16+H16*$I$10","v":{"$error":"#VALUE!"}}]
["CUSTO TOTAL DO ÍTEM",null,null,null,null,null,null,null,{"$f":"SUM(I15:I16)","v":{"$error":"#VALUE!"}}]
[3,"EQUIPAMENTOS"]
["3.1",68326,"SINAPI","ESTRUTURA METÁLICA SUPORTE TABELA BASQUETE","unidade",1,3544.41,{"$f":"F19*G19","v":3544.41},{"$f":"H19+(H19*$I$10)","v":4430.5125}]
["3.2",25398,"SINAPI","CONJUNTO PARA FUTSAL COM TRAVES OFICIAIS DE 3,00 X 2,00 M EM TUBO DE ACO GALVANIZADO 3\" COM REQUADRO EM TUBO DE 1\", PINTURA EM PRIMER COM TINTA ESMALTE SINTETICO E REDES DE POLIETILENO FIO 4 MM","unidade",1,2607.46,{"$f":"F20*G20","v":2607.46},{"$f":"H20+(H20*$I$10)","v":3259.325}]
["3.3",25400,"SINAPI","PAR DE TABELAS DE BASQUETE EM COMPENSADO NAVAL DE *1,80 X 1,20* M, COM ARO DE METAL E REDE (SEM SUPORTE DE FIXACAO)","unidade",1,1056.51,{"$f":"F21*G21","v":1056.51},{"$f":"H21+(H21*$I$10)","v":1320.6375}]
["3.4",25399,"SINAPI","CONJUNTO PARA QUADRA DE VOLEI COM POSTES EM TUBO DE ACO GALVANIZADO 3\", H =255 CM, PINTURA EM TINTA ESMALTE SINTETICO, REDE DE NYLON COM 2 MM, MALHA 10 X 10 CM E ANTENAS OFICIAIS EM FIBRA DE VIDRO","unidade",1,1582.96,{"$f":"F22*G22","v":1582.96},{"$f":"H22+(H22*$I$10)","v":1978.7}]
["CUSTO TOTAL DO ÍTEM",null,null,null,null,null,null,null,{"$f":"SUM(I19:I22)","v":10989.175}]
[4,"LIMPEZA"]
["4.1",9537,"SINAPI","LIMPEZA FINAL DA OBRA","m²",{"$f":"memória!#REF!","v":{"$error":"#VALUE!"}},1.87,{"$f":"F25*G25","v":{"$error":"#VALUE!"}},{"$f":"H25+(H25*$I$10)","v":{"$error":"#VALUE!"}}]
["CUSTO TOTAL DO ÍTEM",null,null,null,null,null,null,null,{"$f":"I25","v":{"$error":"#VALUE!"}}]
[]
["TOTAL GERAL DA OBRA",null,null,null,null,null,null,null,{"$f":"I26+I23+I17+I13","v":{"$error":"#VALUE!"}}]
[]
[]
[]
["Lagoa Formosa, 17 de maio de 2017"]
[]
[]
[]
[]
[]
[]
["______________________________________________"]
[" Eng° Civil CREA "]

{"sheet":"ORÇAMENTO","index":1,"n_rows":60,"n_cols":9,"rows_kept":60,"cut":false,"hidden":false,"merged":[[0,0,0,8],[1,0,1,8],[2,0,2,8],[3,0,3,8],[4,0,6,0],[4,1,6,2],[4,3,6,3],[4,4,6,4],[4,5,6,5],[4,6,4,8],[5,6,6,6],[5,7,6,7],[7,1,7,8],[12,1,12,2],[13,1,13,2],[19,0,19,7],[21,1,21,8],[37,0,37,7],[38,0,38,7],[39,0,39,7],[40,1,40,8],[41,1,41,2],[43,0,43,7],[44,0,44,7],[45,1,45,8],[46,1,46,2],[47,1,47,2],[48,1,48,2],[49,0,49,7],[51,0,51,7],[52,0,54,8],[55,0,58,8],[59,0,59,8],[60,0,60,8]]}
["Prefeitura Municipal de Carmo do Paranaíba-MG "]
["Planilha de Quantidades e Preço \nDATA BASE  - PLANILHA REFERENCIA SINAPI 03/2021"]
["EXECUÇÃO DE VALA SANITÁRIA e LAGOAS DE ESTABILIZAÇÃO - ATERRO CONTROLADO"]
["Carmo do Paranaíba - MG"]
["ITEM","CÓDIGO",null,"DISCRIMINAÇÃO DOS SERVIÇOS","UNID.","QUANT.","PREÇOS"]
[null,null,null,null,null,null,"Unitário","Custo","Custo+BDI(25%)"]
[null,null,null,null,null,null,null,null,0.25]
[1,"EXECUÇÃO DA VALA SANITÁRIA"]
["1.1",101232,"SINAPI","ESCAVAÇÃO VERTICAL A CÉU ABERTO, EM OBRAS DE INFRAESTRUTURA, INCLUINDO CARGA, DESCARGA E TRANSPORTE, EM SOLO DE 1ª CATEGORIA COM ESCAVADEIRA HIDRÁULICA (CAÇAMBA: 1,2 M³ / 155 HP), FROTA DE 3 CAMINHÕES BASCULANTES DE 14 M³, DMT ATÉ 1 KM E VELOCIDADE MÉDIA14KM/H. AF_05/2020","M³",{"$f":"Memória!D8","v":4912},6.37,{"$f":"F9*G9","v":31289.44},{"$f":"H9+(H9*$I$7)","v":39111.8}]
["1.2",90099,"SINAPI","VALETA DE ANCORAGEM - ESCAVAÇÃO MECANIZADA DE VALA COM PROF. ATÉ 1,5 M (MÉDIA ENTRE MONTANTE E JUSANTE/UMA COMPOSIÇÃO POR TRECHO), COM RETROESCAVADEIRA (0,26 M3/88 HP), LARG. MENOR QUE 0,8 M, EM SOLO DE 1A CATEGORIA, EM LOCAIS COM ALTO NÍVEL DE INTERFERÊNCIA.","M3",{"$f":"((70+2)+((25+2)*2))*0.6*0.6","v":45.36},11.9,{"$f":"F10*G10","v":539.784},{"$f":"H10+(H10*$I$7)","v":674.73}]
["1.3",25864,"SINAPI","MANTA TERMOPLASTICA, PEAD, GEOMEMBRANA LISA, E = 1,50 MM ( NBR 15352)","M²",{"$f":"Memória!D10","v":2655},30.84,{"$f":"F11*G11","v":81880.2},{"$f":"H11+(H11*$I$7)","v":102350.25}]
["1.4",100974,"SINAPI","CARGA E DESCARGA MECANICA DE SOLO UTILIZANDO CAMINHAO BASCULANTE 6,0M3 /16T E PA CARREGADEIRA SOBRE PNEUS 128 HP, CAPACIDADE DA CAÇAMBA 1,7 A 2,8 M3, PESO OPERACIONAL 11632 KG","M³",{"$f":"Memória!D11","v":765.1},5.91,{"$f":"F12*G12","v":4521.741},{"$f":"H12+(H12*$I$7)","v":5652.17625}]
["1.5","COMPOSIÇÃO",null,"EXECUÇÃO DE DRENOS DE CHORUME FORMATO ESPINHA DE PEIXE, SEÇÃO ESCAVADA DE 0,24 m2 e COLOCAÇÃO DE 0,6m3/m DE BRITA 2, COM TUBO PEAD CORRUGADO 160 mm, ENVOLTO EM CAMISA GEOTÊXTIL FILTRANTE GRAMATURA 200G/M2. COMPOSIÇÃO ANEXA","M",{"$f":"Memória!D12","v":142},{"$f":"Composições!F12","v":162.324306668162},{"$f":"F13*G13","v":23050.051546879},{"$f":"H13+(H13*$I$7)","v":28812.5644335988}]
["1.6","COMPOSIÇÃO",null,"EXECUÇÃO DE DRENOS VERTICAIS DE BIOGÁS, ESTRUTURADOS COM TELA DE AÇO Q-196, DIÂMETRO 0,90M, COM TUBO DE CONCRETO NO CENTRO DN 400MM PERFURADO, ENVOLTO POR PEDRA DE MÃO/RACHÃO LANÇADA, E TUBO DE CONCRETO DN 1000 MM NA BASE, INCLUSO MÃO DE OBRA E EQUIPAMENTOS","M",15,{"$f":"Composições!F26","v":418.79888063225},{"$f":"F14*G14","v":6281.98320948374},{"$f":"H14+(H14*$I$7)","v":7852.47901185468}]
["1.7",5678,"SINAPI","RETROESCAVADEIRA SOBRE RODAS COM CARREGADEIRA, TRAÇÃO 4X4, POTÊNCIA LÍQ. 88 HP, CAÇAMBA CARREG. CAP. MÍN. 1 M3, CAÇAMBA RETRO CAP. 0,26 M3,PESO OPERACIONAL MÍN. 6.674 KG, PROFUNDIDADE ESCAVAÇÃO MÁX. 4,37 M - CHP DIURNO. AF_06/2014","H",20,109.69,{"$f":"F15*G15","v":2193.8},{"$f":"H15+(H15*$I$7)","v":2742.25}]
["1.8",5679,"SINAPI","RETROESCAVADEIRA SOBRE RODAS COM CARREGADEIRA, TRAÇÃO 4X4, POTÊNCIA LÍQ. 88 HP, CAÇAMBA CARREG. CAP. MÍN. 1 M3, CAÇAMBA RETRO CAP. 0,26 M3,PESO OPERACIONAL MÍN. 6.674 KG, PROFUNDIDADE ESCAVAÇÃO MÁX. 4,37 M - CHI DIURNO. AF_06/2014","H",20,48.44,{"$f":"F16*G16","v":968.8},{"$f":"H16+(H16*$I$7)","v":1211}]
["1.9",90781,"SINAPI","TOPOGRAFIA","H",{"$f":"Memória!D16","v":18},35.25,{"$f":"F17*G17","v":634.5},{"$f":"H17+(H17*$I$7)","v":793.125}]
["1.10",4750,"SINAPI","PEDREIRO","H",{"$f":"Memória!D17","v":56},22.09,{"$f":"F18*G18","v":1237.04},{"$f":"H18+(H18*$I$7)","v":1546.3}]
["1.11",6111,"SINAPI","SERVENTE DE OBRAS","H",{"$f":"Memória!D18","v":184},15.71,{"$f":"F19*G19","v":2890.64},{"$f":"H19+(H19*$I$7)","v":3613.3}]
["CUSTO TOTAL DO ÍTEM",null,null,null,null,null,null,null,{"$f":"SUM(I9:I19)","v":194359.974695453}]
[]
[2,"EXECUÇÃO DE UMA LAGOA DE ESTABILIZAÇÃO (VOLUME ÚTIL 1085 M3)"]
["2.1",101232,"SINAPI","ESCAVAÇÃO VERTICAL A CÉU ABERTO, EM OBRAS DE INFRAESTRUTURA, INCLUINDO CARGA, DESCARGA E TRANSPORTE, EM SOLO DE 1ª CATEGORIA COM ESCAVADEIRA HIDRÁULICA (CAÇAMBA: 1,2 M³ / 155 HP), FROTA DE 3 CAMINHÕES BASCULANTES DE 14 M³, DMT ATÉ 1 KM E VELOCIDADE MÉDIA14KM/H. AF_05/2020","M³",{"$f":"Memória!D21","v":1173.73},6.37,{"$f":"F23*G23","v":7476.6601},{"$f":"H23+(H23*$I$7)","v":9345.825125}]
["2.2",90099,"SINAPI","VALETA DE ANCORAGEM - ESCAVAÇÃO MECANIZADA DE VALA COM PROF. ATÉ 1,5 M (MÉDIA ENTRE MONTANTE E JUSANTE/UMA COMPOSIÇÃO POR TRECHO), COM RETROESCAVADEIRA (0,26 M3/88 HP), LARG. MENOR QUE 0,8 M, EM SOLO DE 1A CATEGORIA, EM LOCAIS COM ALTO NÍVEL DE INTERFERÊNCIA.","M3",{"$f":"Memória!D22","v":35.28},11.9,{"$f":"F24*G24","v":419.832},{"$f":"H24+(H24*$I$7)","v":524.79}]
["2.3",25864,"SINAPI","MANTA TERMOPLASTICA, PEAD, GEOMEMBRANA LISA, E = 1,50 MM ( NBR 15352). *APENAS UMA LAGOA IMPERMEABILIZADA","M²",{"$f":"Memória!D23","v":885},{"$f":"G11","v":30.84},{"$f":"F25*G25","v":27293.4},{"$f":"H25+(H25*$I$7)","v":34116.75}]
["2.4",96385,"SINAPI","EXECUÇÃO E COMPACTAÇÃO DE ATERRO COM SOLO PREDOMINANTEMENTE ARGILOSO EXCLUSIVE SOLO, ESCAVAÇÃO, CARGA E TRANSPORTE. AF_11/2019","M³",{"$f":"Memória!D24","v":275.11},7.86,{"$f":"F26*G26","v":2162.3646},{"$f":"H26+(H26*$I$7)","v":2702.95575}]
["2.5",97904,"SINAPI","CAIXA ENTERRADA HIDRÁULICA RETANGULAR EM ALVENARIA COM TIJOLOS CERÂMICOS MACIÇOS, DIMENSÕES INTERNAS: 1X1X0,6 M PARA REDE DE ESGOTO. 4 UNIDADES DUPLAS","UNID.",{"$f":"Memória!D25","v":4},822.04,{"$f":"F27*G27","v":3288.16},{"$f":"H27+(H27*$I$7)","v":4110.2}]
["2.6",38032,"SINAPI"," TUBO DE PVC CORRUGADO DE DUPLA PAREDE PARA REDE COLETORA DE ESGOTO, DN 150 MM, JUNTA ELÁSTICA, INSTALADO EM LOCAL COM NÍVEL ALTO DE INTERFERÊNCIAS - FORNECIMENTO E ASSENTAMENTO. ","M",{"$f":"Memória!D26","v":32},45.09,{"$f":"F28*G28","v":1442.88},{"$f":"H28+(H28*$I$7)","v":1803.6}]
["2.7",20181,"SINAPI","TÊ, PVC, SERIE R, DN 150 X 150 MM, JUNTA ELÁSTICA","UNID.",{"$f":"Memória!D27","v":1},139.87,{"$f":"F29*G29","v":139.87},{"$f":"H29+(H29*$I$7)","v":174.8375}]
["2.8",90099,"SINAPI","ESCAVAÇÃO MECANIZADA DE VALA COM PROF. ATÉ 1,5 M (MÉDIA ENTRE MONTANTE E JUSANTE/UMA COMPOSIÇÃO POR TRECHO), COM RETROESCAVADEIRA (0,26 M3/88 HP), LARG. MENOR QUE 0,8 M, EM SOLO DE 1A CATEGORIA, EM LOCAIS COM ALTO NÍVEL DE INTERFERÊNCIA.","M3",{"$f":"Memória!D28","v":10.08},{"$f":"G24","v":11.9},{"$f":"F30*G30","v":119.952},{"$f":"H30+(H30*$I$7)","v":149.94}]
["2.9",93379,"SINAPI","REATERRO MECANIZADO DE VALA COM RETROESCAVADEIRA (CAPACIDADE DA CAÇAMBA DA RETRO: 0,26 M³ / POTÊNCIA: 88 HP), LARGURA DE 0,8 A 1,5 M, PROFUNDIDADE ATÉ 1,5 M, COM SOLO DE 1ª CATEGORIA EM LOCAIS COM BAIXO NÍVEL DE INTERFERÊNCIA. ","M3",{"$f":"Memória!D29","v":10.08},15.65,{"$f":"F31*G31","v":157.752},{"$f":"H31+(H31*$I$7)","v":197.19}]
["2.10",98504,"SINAPI","PLANTIO DE GRAMA ESMERALDA EM PLACAS","M2",{"$f":"Memória!D30","v":42.5},8.81,{"$f":"F32*G32","v":374.425},{"$f":"H32+(H32*$I$7)","v":468.03125}]
["2.11",5678,"SINAPI","RETROESCAVADEIRA SOBRE RODAS COM CARREGADEIRA, TRAÇÃO 4X4, POTÊNCIA LÍQ. 88 HP, CAÇAMBA CARREG. CAP. MÍN. 1 M3, CAÇAMBA RETRO CAP. 0,26 M3,PESO OPERACIONAL MÍN. 6.674 KG, PROFUNDIDADE ESCAVAÇÃO MÁX. 4,37 M - CHP DIURNO. AF_06/2014","H",{"$f":"Memória!D31","v":20},109.69,{"$f":"F33*G33","v":2193.8},{"$f":"H33+(H33*$I$7)","v":2742.25}]
["2.12",5679,"SINAPI","RETROESCAVADEIRA SOBRE RODAS COM CARREGADEIRA, TRAÇÃO 4X4, POTÊNCIA LÍQ. 88 HP, CAÇAMBA CARREG. CAP. MÍN. 1 M3, CAÇAMBA RETRO CAP. 0,26 M3,PESO OPERACIONAL MÍN. 6.674 KG, PROFUNDIDADE ESCAVAÇÃO MÁX. 4,37 M - CHI DIURNO. AF_06/2014","H",{"$f":"Memória!D32","v":20},48.44,{"$f":"F34*G34","v":968.8},{"$f":"H34+(H34*$I$7)","v":1211}]
["2.13",90781,"SINAPI","TOPOGRAFIA","H",{"$f":"Memória!D33","v":18},35.25,{"$f":"F35*G35","v":634.5},{"$f":"H35+(H35*$I$7)","v":793.125}]
["2.14",4750,"SINAPI","PEDREIRO","H",{"$f":"Memória!D34","v":32},22.09,{"$f":"F36*G36","v":706.88},{"$f":"H36+(H36*$I$7)","v":883.6}]
["2.15",6111,"SINAPI","SERVENTE DE OBRAS","H",{"$f":"Memória!D35","v":128},15.71,{"$f":"F37*G37","v":2010.88},{"$f":"H37+(H37*$I$7)","v":2513.6}]
["CUSTO TOTAL DO ÍTEM",null,null,null,null,null,null,null,{"$f":"SUM(I23:I37)","v":61737.694625}]
["TOTAL GERAL DA OBRA",null,null,null,null,null,null,null,{"$f":"SUM(I20,I38)","v":256097.669320453}]
["CUSTO MENSAL DA OBRA - RATEIO 9 MESES",null,null,null,null,null,null,null,{"$f":"I39/9","v":28455.2965911615}]
[3,"ELABORAÇÃO DE PROJETO EXECUTIVO"]
["3.1","COMPOSIÇÃO",null,"INVESTIGAÇÃO, SONDAGENS E ANÁLISES DE SOLOS","VB",1,{"$f":"Composições!F51","v":24164.485},{"$f":"F42*G42","v":24164.485},{"$f":"H42+(H42*$I$7)","v":30205.60625}]
["3.2",40937,"SINAPI","PROJETO DE CONFORMAÇÃO E REGULARIZAÇÃO DO ATERRO CONTROLADO. VOLUMETRIA, DRENAGEM DE CHORUME, LAGOAS DE ESTABILIZAÇÃO, REDE DE EFLUENTE, DRENAGEM DE BIOGÁS, ESTABILIDADE GEOTÉCNICA, PLANILHA DE QUANTITATIVOS, MEMORIAL DESCRITIVO E ORÇAMENTOS. ENGENHEIRO CIVIL PLENO","MÊS",2,17596.57,{"$f":"F43*G43","v":35193.14},{"$f":"H43+(H43*$I$7)","v":43991.425}]
["CUSTO TOTAL DO ITEM",null,null,null,null,null,null,null,{"$f":"SUM(I42:I43)","v":74197.03125}]
["CUSTO MENSAL DO ITEM - RATEIO 6 MESES",null,null,null,null,null,null,null,{"$f":"I44/6","v":12366.171875}]
[3,"EQUIPAMENTOS E MÃO DE OBRA REGULAR (VALOR MENSAL)"]
["3.1","COMPOSIÇÃO",null,"MÃO DE OBRA FIXA (1 OPERADOR DE MÁQUINAS)","VB/MÊS",1,{"$f":"'M.O. Aterro'!E49","v":5657.36},{"$f":"F47*G47","v":5657.36},{"$f":"H47+(H47*$I$7)","v":7071.7}]
["3.2","COMPOSIÇÃO",null,"TRATOR DE ESTEIRAS","VB/MÊS",1,{"$f":"ESTEIRA!G31","v":22132.5},{"$f":"F48*G48","v":22132.5},{"$f":"H48+(H48*$I$7)","v":27665.625}]
["3.3","COMPOSIÇÃO",null,"PICKUP","VB/MÊS",1,{"$f":"PICKUP!G45","v":1924.1},{"$f":"F49*G49","v":1924.1},{"$f":"H49+(H49*$I$7)","v":2405.125}]
["CUSTO TOTAL DO ITEM",null,null,null,null,null,null,null,{"$f":"SUM(I47:I49)","v":37142.45}]
[]
["CUSTO MENSAL GLOBAL",null,null,null,null,null,null,null,{"$f":"I40+I50","v":65597.7465911615}]
["Carmo do Paranaíba, 08 de junho de 2021"]
[]
[]
[]
[]
[]
[]
["______________________________________________"]

{"sheet":"Volumetria","index":2,"n_rows":22,"n_cols":3,"rows_kept":22,"cut":false,"hidden":false,"merged":[[0,0,0,2],[1,0,2,2]]}
["Prefeitura Municipal de Carmo do Paranaíba"]
["MEMÓRIA DE CÁLCULO DE QUANTITATIVOS DE RESÍDUOS - VOLUMETRIA"]
[]
[]
["Descrição","unidade","Quantidade"]
["População","hab",30329]
["Contribuição per capita","kg/hab.dia",0.7]
["Peso diário","ton",{"$f":"ROUNDUP(C6*C7/1000,1)","v":21.3}]
["Peso mensal","ton",{"$f":"C8*25.5","v":543.15}]
["Densidade compactado","ton/m³",0.75]
["Volume diário","m³",{"$f":"C8/C10","v":28.4}]
["Volume mensal","m³",{"$f":"C9/C10","v":724.2}]
["Volume com solo (30%)","m³",{"$f":"C12*1.3","v":941.46}]
["Vida útil de cada vala","meses",9]
["Volume da vala padrão","m³",{"$f":"C14*C13","v":8473.14}]
["Volume de uma seção de escavação típica, largura 23 m x altura 4 m, com camada sobreposta altura 3 m","m³/m",128.5]
["Comprimento estimado da vala","m",{"$f":"C15/C16","v":65.9388326848249}]
["Comprimento de vala adotado","m",70]
["Volume Sólido 3D - Escavação","m3",{"$f":"Memória!D8","v":4912}]
["Volume Sólido 3D - Camada sobreposta","m3",{"$f":"3337.5","v":3337.5}]
["Volume total medido","m3",{"$f":"SUM(C19:C20)","v":8249.5}]
["Percentual do volume estimado","%",{"$f":"C21/C15","v":0.973606006746023}]

{"sheet":"Memória","index":3,"n_rows":40,"n_cols":5,"rows_kept":40,"cut":false,"hidden":false,"merged":[[0,0,1,4],[3,0,3,4],[5,3,5,4],[6,1,6,4],[19,1,19,4],[35,0,36,4],[37,0,37,4],[38,0,38,4],[39,0,39,4],[40,0,40,4]]}
["Prefeitura Municipal de Carmo do Paranaíba"]
[]
[]
["MEMÓRIA DE CÁLCULO DE QUANTITATIVOS FÍSICOS"]
[]
["ITEM","DESCRIÇÃO","FÓRMULAS","TOTAL"]
[1,{"$f":"ORÇAMENTO!B8","v":"EXECUÇÃO DA VALA SANITÁRIA"}]
["1.1","ESCAVAÇÃO VERTICAL A CÉU ABERTO, EM OBRAS DE INFRAESTRUTURA, INCLUINDO CARGA, DESCARGA E TRANSPORTE, EM SOLO DE 1ª CATEGORIA COM ESCAVADEIRA HIDRÁULICA (CAÇAMBA: 1,2 M³ / 155 HP), FROTA DE 3 CAMINHÕES BASCULANTES DE 14 M³, DMT ATÉ 1 KM E VELOCIDADE MÉDIA14KM/H. AF_05/2020","Volume=4912 (volume do sólido 3D)",4912,"M³"]
["1.2","VALETA DE ANCORAGEM - ESCAVAÇÃO MECANIZADA DE VALA COM PROF. ATÉ 1,5 M (MÉDIA ENTRE MONTANTE E JUSANTE/UMA COMPOSIÇÃO POR TRECHO), COM RETROESCAVADEIRA (0,26 M3/88 HP), LARG. MENOR QUE 0,8 M, EM SOLO DE 1A CATEGORIA, EM LOCAIS COM ALTO NÍVEL DE INTERFERÊNCIA.","Volume = comprimento x área da seção escavada =((70+2)+(25+2)*2)*0,6*0,6",{"$f":"((70+2)+(25+2)*2)*0.6*0.6","v":45.36},"M³"]
["1.3","MANTA TERMOPLASTICA, PEAD, GEOMEMBRANA LISA, E = 1,50 MM ( NBR 15352)","ARREDONDAR.PARA.CIMA((1 vala*(2*(137,01 m2+461,51 m2)+(área externa (72*27)-(área interna (70*25))+área de fundo(58*13)))*1,15 (coeficiente de perdas)/ área da bobina (295);0)*295",{"$f":"ROUNDUP((2*(137.01+461.51)+(72*27-70*25)+58*13)*1.05*1.15/295,0)*295","v":2655},"M²"]
["1.4","CARGA E DESCARGA MECANICA DE SOLO UTILIZANDO CAMINHAO BASCULANTE 6,0M3 /16T E PA CARREGADEIRA SOBRE PNEUS 128 HP, CAPACIDADE DA CAÇAMBA 1,7 A 2,8 M3, PESO OPERACIONAL 11632 KG","765,1 (sólido 3D CAD)",765.1,"M³"]
["1.5","EXECUÇÃO DE DRENOS DE CHORUME FORMATO ESPINHA DE PEIXE, SEÇÃO ESCAVADA DE 0,24 m2 e COLOCAÇÃO DE 0,6m3/m DE BRITA 2, COM TUBO PEAD CORRUGADO 160 mm, ENVOLTO EM CAMISA GEOTÊXTIL FILTRANTE GRAMATURA 200G/M2. COMPOSIÇÃO ANEXA","58+4x18 + 12",{"$f":"58+(4*18)+12","v":142},"M"]
["1.6","EXECUÇÃO DE DRENOS VERTICAIS DE BIOGÁS, ESTRUTURADOS COM TELA DE AÇO Q-138, DIÂMETRO 0,80M, COM TUBO DE CONCRETO NO CENTRO DN 400MM PERFURADO, ENVOLTO POR PEDRA DE MÃO/RACHÃO LANÇADA, E TUBO DE CONCRETO DN 1000 MM NA BASE, INCLUSO MÃO DE OBRA E EQUIPAMENTOS","3 (unidades) x 5 (altura em m)",15,"M"]
["1.7","RETROESCAVADEIRA SOBRE RODAS COM CARREGADEIRA, TRAÇÃO 4X4, POTÊNCIA LÍQ. 88 HP, CAÇAMBA CARREG. CAP. MÍN. 1 M3, CAÇAMBA RETRO CAP. 0,26 M3,PESO OPERACIONAL MÍN. 6.674 KG, PROFUNDIDADE ESCAVAÇÃO MÁX. 4,37 M - CHP DIURNO. AF_06/2014","5 (dias) x 4 (horas produtivas)",{"$f":"5*4","v":20},"CHP"]
["1.8","RETROESCAVADEIRA SOBRE RODAS COM CARREGADEIRA, TRAÇÃO 4X4, POTÊNCIA LÍQ. 88 HP, CAÇAMBA CARREG. CAP. MÍN. 1 M3, CAÇAMBA RETRO CAP. 0,26 M3,PESO OPERACIONAL MÍN. 6.674 KG, PROFUNDIDADE ESCAVAÇÃO MÁX. 4,37 M - CHI DIURNO. AF_06/2014","5 (dias) x 4 (horas improdutivas)",{"$f":"5*4","v":20},"CHI"]
["1.9","TOPOGRAFIA","3 (dias) x 6 (horas/dia)",{"$f":"3*6","v":18},"H"]
["1.10","PEDREIRO","7 (dias) x 8 (horas/dia)",{"$f":"7*8","v":56},"H"]
["1.11","SERVENTE DE OBRAS","[4 (dias) x 8 (horas/dia) x 2 (homens)] + [3 (dias) x 8 (horas/dia) x 5 (homens)]",{"$f":"4*8*2+3*8*5","v":184},"H"]
[]
[2,{"$f":"ORÇAMENTO!B22","v":"EXECUÇÃO DE UMA LAGOA DE ESTABILIZAÇÃO (VOLUME ÚTIL 1085 M3)"}]
["2.1","ESCAVAÇÃO VERTICAL A CÉU ABERTO, EM OBRAS DE INFRAESTRUTURA, INCLUINDO CARGA, DESCARGA E TRANSPORTE, EM SOLO DE 1ª CATEGORIA COM ESCAVADEIRA HIDRÁULICA (CAÇAMBA: 0,8 M³ / 111 HP), FROTA DE 3 CAMINHÕES BASCULANTES DE 10 M³, DMT ATÉ 1 KM E VELOCIDADE MÉDIA14KM/H. AF_05/2020","Volume=1173,73 (volume da superíficie de comparação - Civil 3D)",1173.73,"M³"]
["2.2","VALETA DE ANCORAGEM - ESCAVAÇÃO MECANIZADA DE VALA COM PROF. ATÉ 1,5 M (MÉDIA ENTRE MONTANTE E JUSANTE/UMA COMPOSIÇÃO POR TRECHO), COM RETROESCAVADEIRA (0,26 M3/88 HP), LARG. MENOR QUE 0,8 M, EM SOLO DE 1A CATEGORIA, EM LOCAIS COM ALTO NÍVEL DE INTERFERÊNCIA.","Volume = comprimento x área da seção escavada =((25+2)*2+(20+2)*2)*0,6*0,6",{"$f":"((25+2)*2+((20+2)*2))*0.6*0.6","v":35.28},"M³"]
["2.3","MANTA TERMOPLASTICA, PEAD, GEOMEMBRANA LISA, E = 1,50 MM ( NBR 15352)","ARREDONDAR.PARA.CIMA((1 lagoa*(2*(106,07 m2+141,421 m2)+(área externa (26,5*21,5)-(área interna (25*20))+área de fundo(15*10)))*1,15 (coeficiente de perdas)/ área da bobina (295);0)*295",{"$f":"ROUNDUP((1*(2*(106.07+141.421)+(26.5*21.5-25*20)+(15*10)))*1.15/295,0)*295","v":885},"M²"]
["2.4","EXECUÇÃO E COMPACTAÇÃO DE ATERRO COM SOLO PREDOMINANTEMENTE ARGILOSO EXCLUSIVE SOLO, ESCAVAÇÃO, CARGA E TRANSPORTE. AF_11/2019","275,11 (sólido 3D CAD)",275.11,"M³"]
["2.5","CAIXA ENTERRADA HIDRÁULICA RETANGULAR EM ALVENARIA COM TIJOLOS CERÂMICOS MACIÇOS, DIMENSÕES INTERNAS: 1X1X0,6 M PARA REDE DE ESGOTO","2 unidades de 2 m",{"$f":"2*2","v":4},"M"]
["2.6"," TUBO DE PVC CORRUGADO DE DUPLA PAREDE PARA REDE COLETORA DE ESGOTO, DN 150 MM, JUNTA ELÁSTICA, INSTALADO EM LOCAL COM NÍVEL ALTO DE INTERFERÊNCIAS - FORNECIMENTO E ASSENTAMENTO. ","28m + 2m + 2m",{"$f":"28+2+2","v":32},"M"]
["2.7","TÊ, PVC, SERIE R, DN 150 X 150 MM, JUNTA ELÁSTICA","1 unidade",1,"UN"]
["2.8","ESCAVAÇÃO MECANIZADA DE VALA COM PROF. ATÉ 1,5 M (MÉDIA ENTRE MONTANTE E JUSANTE/UMA COMPOSIÇÃO POR TRECHO), COM RETROESCAVADEIRA (0,26 M3/88 HP), LARG. MENOR QUE 0,8 M, EM SOLO DE 1A CATEGORIA, EM LOCAIS COM ALTO NÍVEL DE INTERFERÊNCIA.","Volume = comprimento x área da seção escavada =(28*0,6*0,6)",{"$f":"(28)*0.6*0.6","v":10.08},"M3"]
["2.9","REATERRO MECANIZADO DE VALA COM RETROESCAVADEIRA (CAPACIDADE DA CAÇAMBA DA RETRO: 0,26 M³ / POTÊNCIA: 88 HP), LARGURA DE 0,8 A 1,5 M, PROFUNDIDADE ATÉ 1,5 M, COM SOLO DE 1ª CATEGORIA EM LOCAIS COM BAIXO NÍVEL DE INTERFERÊNCIA. ","Volume = comprimento x área da seção escavada =(28*0,6*0,6)",{"$f":"28*0.6*0.6","v":10.08},"M3"]
["2.10","PLANTIO DE GRAMA ESMERALDA EM PLACAS","Área de superfície medida no ambiente CAD",42.5,"M2"]
["2.11","RETROESCAVADEIRA SOBRE RODAS COM CARREGADEIRA, TRAÇÃO 4X4, POTÊNCIA LÍQ. 88 HP, CAÇAMBA CARREG. CAP. MÍN. 1 M3, CAÇAMBA RETRO CAP. 0,26 M3,PESO OPERACIONAL MÍN. 6.674 KG, PROFUNDIDADE ESCAVAÇÃO MÁX. 4,37 M - CHP DIURNO. AF_06/2014","5 (dias) x 4 (horas produtivas)",{"$f":"5*4","v":20},"CHP"]
["2.12","RETROESCAVADEIRA SOBRE RODAS COM CARREGADEIRA, TRAÇÃO 4X4, POTÊNCIA LÍQ. 88 HP, CAÇAMBA CARREG. CAP. MÍN. 1 M3, CAÇAMBA RETRO CAP. 0,26 M3,PESO OPERACIONAL MÍN. 6.674 KG, PROFUNDIDADE ESCAVAÇÃO MÁX. 4,37 M - CHI DIURNO. AF_06/2014","5 (dias) x 4 (horas improdutivas)",{"$f":"5*4","v":20},"CHI"]
["2.13","TOPOGRAFIA","3 (dias) x 6 (horas/dia)",{"$f":"3*6","v":18},"H"]
["2.14","PEDREIRO","4 (dias) x 8 (horas/dia)",{"$f":"4*8","v":32},"H"]
["2.15","SERVENTE DE OBRAS","[4 (dias) x 8 (horas/dia) x 4 (homens)]",{"$f":"D34*4","v":128},"H"]
[]
[]
["Carmo do Paranaíba, 08 de junho de 2021"]
[]
["______________________________________________"]

{"sheet":"Composições","index":4,"n_rows":51,"n_cols":7,"rows_kept":51,"cut":false,"hidden":false,"merged":[[0,0,0,6],[9,0,9,4],[10,0,10,4],[11,0,11,4],[13,0,13,6],[23,0,23,4],[24,0,24,4],[25,0,25,4],[28,0,28,6],[50,0,50,3]]}
["Drenagem espinha de peixe. Material e mão de obra.                                                                                                                                                                                                               Seção escavada de 0,24 m² e 0,6m3/m de brita, tubo PEAD corrugado 160 mm, envolto em geotêxtil filtrante 200g/m2"]
["1.5","Descrição do item","Unidade","Qtde","Unitário","Total","Referência"]
["1.5.1","Escavação mecanizada de vala em solo de 1a categoria (largura 60cm, altura 40 cm)","m³",{"$f":"0.4*0.6","v":0.24},6.56,{"$f":"D3*E3","v":1.5744},"SINAPI 90105"]
["1.5.2","Lastro de vala com preparo de fundo, esp 5 cm, largura menor que 1,5 m (0,6m), com camada de brita, lançamento manual, baixo nível de interferência","m³",{"$f":"D5*0.6","v":0.6},4.84,{"$f":"D4*E4","v":2.904},"SINAPI 101616"]
["1.5.3","Tubo dreno, corrugado, espiralado, flexível, perfurado, em polietileno de alta densidade (PEAD), DN 160 mm (6\") para drenagem (Norma DNIT093/2006 - EM)","m",1,19.08,{"$f":"D5*E5","v":19.08},"SINAPI 00038053"]
["1.5.4","Execução de dreno francês (cego) com brita núm. 2, sem frete, inclui mão de obra","m³",0.6,124.74,{"$f":"D6*E6","v":74.844},"SINAPI 73883"]
["1.5.5","Transporte comercial de brita. Distância entre o aterro e a pedreira Ultracal em Varjão de Minas = 128 km. DMT até 30 km em via pavimentada com caminhão 14 m3","m3xkm",{"$f":"D6*30","v":18},1.42,{"$f":"D7*E7","v":25.56},"SINAPI 95876"]
["1.5.6","Transporte comercial de brita. Distância entre o aterro e a pedreira Ultracal em Varjão de Minas = 128 km. Excedente do DMT 30 km em via pavimentada com caminhão 14 m3","m3xkm",{"$f":"D6*(128-30)","v":58.8},0.57,{"$f":"D8*E8","v":33.516},"SINAPI 93593"]
["1.5.7","Camisa geotêxtil filtrante 200g/m² para tubo drenante D=150 mm, Dext=250 mm","m²",{"$f":"D5*PI()*0.25","v":0.785398163397448},6.17,{"$f":"D9*E9","v":4.84590666816226},"SINAPI 00004021"]
["Valor total",null,null,null,null,{"$f":"SUM(F3:F9)","v":162.324306668162}]
["Quantidade",null,null,null,"Quantidade",1,"metro"]
["Valor unitário",null,null,null,"Valor unitário",{"$f":"F10/F11","v":162.324306668162}]
[]
["Drenagem de gás. Malha de aço Q196, diâmetro 0,95 m, tubo de concreto DN 400 mm, enchimento com pedra de mão jogada. Altura 5 m"]
["1.6","Descrição do item","Unidade","Qtde","Unitário","Total","Referência"]
["1.6.1","Tubo de concreto armado para drenagem de águas pluviais, Classe PA-1, encaixe ponta e bolsa, diâmetro nominal de 1000mm","m",1,280.97,{"$f":"D16*E16","v":280.97},"SINAPI 00007753"]
["1.6.2","Tela de aço soldada nervurada Q138. Malha 10x10 cm, fios CA-60 4,2 mm. Painel de 2,45 x 6,0 m","m²",{"$f":"ROUNDUP(5/6,0)*2.45*6","v":14.7},42.38,{"$f":"D17*E17","v":622.986},"SINAPI 00007156"]
["1.6.3","Tubo de concreto simples para água pluvial DN 400mm. Instalado em local com alto nível de interferência, com junta argamassada rígida","m",5,124.66,{"$f":"D18*E18","v":623.3},"SINAPI 92219"]
["1.6.4","Pedra de mão ou pedra rachão para arrimo/fundação (sem frete)","m3",{"$f":"(5*PI()*(3/PI()-0.3)^2/4)","v":1.6844153930965},75.87,{"$f":"D19*E19","v":127.796595874231},"SINAPI 00004730"]
["1.6.5","Transporte comercial de brita. Distância entre o aterro e a pedreira Ultracal em Varjão de Minas = 128 km. DMT até 30 km em via pavimentada com caminhão 14 m3","m3xkm",{"$f":"D19*30","v":50.5324617928949},1.42,{"$f":"D20*E20","v":71.7560957459107},"SINAPI 95876"]
["1.6.6","Transporte comercial de brita. Distância entre o aterro e a pedreira Ultracal em Varjão de Minas = 128 km. Excedente do DMT 30 km em via pavimentada com caminhão 14 m3","m3xkm",{"$f":"D19*(128-30)","v":165.072708523457},0.57,{"$f":"D21*E21","v":94.0914438583703},"SINAPI 93593"]
["1.6.7","Mão de obra para lançamento das pedras. Valor adaptado da composição para gabião caixa","m3",{"$f":"(5*PI()*(3/PI()-0.3)^2/4)","v":1.6844153930965},{"$f":"72.16+25.67","v":97.83},{"$f":"D22*E22","v":164.78635790663},"Fração mão de obra da composição SINAPI 92743"]
["1.6.8","Escavadeira para lançamento das pedras. Valor adaptado da composição para gabião caixa","m3",{"$f":"(5*PI()*(3/PI()-0.3)^2/4)","v":1.6844153930965},{"$f":"23.2+41.1","v":64.3},{"$f":"D23*E23","v":108.307909776105},"Fração equipamento da composição SINAPI 92743"]
["Valor total",null,null,null,null,{"$f":"SUM(F16:F23)","v":2093.99440316125}]
["Quantidade",null,null,null,"Quantidade",5,"metros"]
["Valor unitário",null,null,null,"Valor unitário",{"$f":"F24/F25","v":418.79888063225}]
[]
[]
["3.1 - Plano de investigação da área"]
["3.1","Descrição do item","Unidade","Qtde","Unitário","Total","Referência"]
["3.1.1","MOBILIZAÇÃO E DESMOBILIZAÇÃO POR EQUIPAMENTO DE\nSONDAGEM A PERCUSSÃO D = 2 1/2\".","VB",1,700,{"$f":"D31*E31","v":700},"SETOP SON-SPT-005"]
["3.1.2","SONDAGEM A PERCUSSÃO D = 2 1/2\" COM MEDIDA DE SPT\n(FATURAMENTO MÍNIMO = 30 M). Até 6 m de profundidade","M",60,75.62,{"$f":"D32*E32","v":4537.2},"SETOP SON-SPT-010"]
["3.1.3","PERFURAÇÃO DE ESTACA BROCA A TRADO MANUAL D = 300 MM. PARA COLETA DE MATERIAIS","M",6,44.28,{"$f":"D33*E33","v":265.68},"SETOP FUN-TRA-020"]
["3.1.4","MOBILIZAÇÃO E DESMOBILIZAÇÃO DE EQUIPAMENTO PARA BROCA TRADO DMT ATÉ 50 KM","VB",1,1000,{"$f":"D34*E34","v":1000},"SETOP FUN-TRA-025"]
["3.1.5","PERFURAÇÃO DE ESTACA BROCA A TRADO MECANIZADO D = 300 MM. PARA MAPEAMENTO DAS ÁREAS DE DEPÓSITO DE RESÍDUOS","M",40,27.5,{"$f":"D35*E35","v":1100},"SETOP FUN-TRA-035"]
["3.1.6","PREPARACAO DE AMOSTRAS PARA ENSAIO DE CARACTERIZACAO - SOLOS","un",15,55.04,{"$f":"D36*E36","v":825.6},"SETOP ENS-SOL-100"]
["3.1.7","ENSAIO DE GRANULOMETRIA POR PENEIRAMENTO E SEDIMENTACAO - SOLOS","un",15,95.08,{"$f":"D37*E37","v":1426.2},"SETOP ENS-SOL-020"]
["3.1.8","ENSAIO DE DENSIDADE REAL - SOLOS","un",15,45.03,{"$f":"D38*E38","v":675.45},"SETOP ENS-SOL-065"]
["3.1.9","ENSAIO DE LIMITE DE LIQUIDEZ - SOLOS","un",15,50.04,{"$f":"D39*E39","v":750.6},"SETOP ENS-SOL-025"]
["3.1.10","ENSAIO DE LIMITE DE PLASTICIDADE - SOLOS","un",15,45.03,{"$f":"D40*E40","v":675.45},"SETOP ENS-SOL-030"]
["3.1.11","ENSAIO DE TEOR DE UMIDADE - EM LABORATORIO - SOLOS","un",{"$f":"D42*5","v":15},40.03,{"$f":"D41*E41","v":600.45},"SETOP ENS-SOL-085"]
["3.1.12","ENSAIO DE COMPACTACAO - AMOSTRAS NAO TRABALHADAS - ENERGIA NORMAL - SOLOS","un",3,95.08,{"$f":"D42*E42","v":285.24},"SETOP ENS-SOL-035"]
["3.1.13","ENSAIO DE ÍNDICE DE SUPORTE CALIFÓRNIA - ENERGIA NORMAL. NBR 9895. 3 UNIDADES. CUSTO SEM REFERÊNCIA. HORAS DE TÉCNICO DE LABORATÓRIO","H",{"$f":"3*3","v":9},27.89,{"$f":"D43*E43","v":251.01},"SINAPI 88321"]
["3.1.14","ENSAIO DE PERMEABILIDADE À CARGA VARIÁVEL. NBR 14545. 3 UNIDADES. CUSTO SEM REFERÊNCIA. HORAS DE TÉCNICO DE LABORATÓRIO","H",{"$f":"3*9","v":27},27.89,{"$f":"D44*E44","v":753.03},"SINAPI 88321"]
["3.1.15","ENSAIO DE INFILTRAÇÃO PELO MÉTODO DOS ANÉIS CONCÊNTRICOS.                             3 UNIDADES. CUSTO SEM REFERÊNCIA. HORAS DE TÉCNICO DE LABORATÓRIO","H",{"$f":"3*12","v":36},27.89,{"$f":"D45*E45","v":1004.04},"SINAPI 88321"]
["3.1.16","MASSA UNITÁRIA ESTADO SOLTO DO SOLO PARA DETERMINAÇÃO DO EMPOLAMENTO - NBR NM 45. 3 UNIDADES. CUSTO SEM REFERÊNCIA. HORAS DE TÉCNICO DE LABORATÓRIO","H",{"$f":"3*1.5","v":4.5},27.89,{"$f":"D46*E46","v":125.505},"SINAPI 88321"]
["3.1.17","ENSAIO DE MASSA ESPECIFICA - IN SITU - METODO FRASCO DE AREIA - SOLOS","un",3,35.03,{"$f":"D47*E47","v":105.09},"SETOP ENS-SOL-055"]
["3.1.18","ENSAIO DE TEOR DE UMIDADE - PROCESSO SPEEDY - SOLOS","un",3,30.02,{"$f":"D48*E48","v":90.06},"SETOP ENS-SOL-080"]
["3.1.19","AUXILIAR DE LABORATORISTA DE SOLOS E DE CONCRETO (MENSALISTA)","mês",1,4030.95,{"$f":"D49*E49","v":4030.95},"SINAPI 101385"]
["3.1.20","TECNICO EM LABORATORIO E CAMPO DE CONSTRUCAO CIVIL (MENSALISTA)","mês",1,4962.93,{"$f":"D50*E50","v":4962.93},"SINAPI 101456"]
["PREÇO TOTAL",null,null,null,null,{"$f":"SUM(F31:F50)","v":24164.485}]

{"sheet":"Imagens CAD","index":5,"n_rows":47,"n_cols":8,"rows_kept":47,"cut":false,"hidden":false,"merged":[]}
[]
[]
[]
[]
[]
[]
[]
[]
[]
[]
[]
[]
[]
[]
[]
[]
[]
[]
[]
[]
[]
[]
[]
[]
[]
[]
[]
[]
[]
[]
[]
[]
[]
[]
[]
[]
[]
[]
[]
[]
[]
[]
[null,null,null,null,null,null,"Cota (m)","Referência"]
[null,null,null,null,null,null,96,"cota de topo"]
[null,null,null,null,null,null,95,"nível chorume topo"]
[null,null,null,null,null,null,91.5,"fundo projetado"]
[null,null,null,null,null,null,91,"fundo com reserva de lodo"]

{"sheet":"M.O. Aterro","index":6,"n_rows":50,"n_cols":7,"rows_kept":50,"cut":false,"hidden":false,"merged":[[0,0,0,6],[6,0,6,6],[8,7,8,8],[17,0,17,1],[22,0,22,1],[26,0,26,6],[36,0,36,1],[37,0,37,1],[42,0,42,1],[49,0,49,3]]}
["MÃO DE OBRA - ATERRO SANITÁRIO"]
[]
["CCT MOTORISTA - FETTROMINAS E SINDILURB - NÚMERO DE REGISTRO NO MTE: MG001347/2020 "]
["CCT OPERADORES DE MÁQUINAS - SITICOP E SICEPOT - REGISTRO TEM: MG001906/2020 "]
["PREVISTO 5% DE REAJUSTE NO SALÁRIO BASE, CESTA BÁSICA E VALE REFEIÇÃO"]
[]
["MOTORISTAS  - FETTROMINAS E SINDILURB"]
["Salário mensal",null,1,"x",{"$f":"1733.23*1.05","v":1819.8915},"=",{"$f":"ROUND(C8*E8,2)","v":1819.89}]
["Insalubridade-G.médio",null,0.4,"x",1100,"=",{"$f":"ROUND(C9*E9,2)","v":440}]
["Hora extra 50% adicional",null,0,"x",{"$f":"ROUND(E8/220*1.5,2)","v":12.41},"=",{"$f":"ROUND(C10*E10,2)","v":0}]
["H.E Feriados 100%",null,null,"x",{"$f":"ROUND((E8/220)*2,2)","v":16.54},"=",{"$f":"ROUND(C11*E11,2)","v":0}]
["Adicional H. Noturno",null,0,"x",{"$f":"(E8/220)*0.2","v":1.65444681818182},"=",{"$f":"ROUND(C12*E12,2)","v":0}]
["Encargos sociais",null,{"$f":"ENCARGOS!$C$43","v":0.7969},"x",{"$f":"SUM(G8:G12)","v":2259.89},"=",{"$f":"ROUND(C13*E13,2)","v":1800.91}]
["Salário mensal com encargos",null,null,null,null,null,{"$f":"SUM(G8:G13)","v":4060.8}]
["Vale refeição",null,22,"x",{"$f":"13.76*1.05","v":14.448},"=",{"$f":"ROUND(C15*E15,2)","v":317.86}]
["Cesta Básica",null,1,"x",{"$f":"179.2*1.05","v":188.16},"=",{"$f":"ROUND(C16*E16,2)","v":188.16}]
["Cesta natalina",null,1,"x",{"$f":"E16/12","v":15.68},"=",{"$f":"ROUND(C17*E17,2)","v":15.68}]
["Cesta de gratificação férias  (1/12)",null,2,"x",{"$f":"E16/12","v":15.68},"=",{"$f":"ROUND(C18*E18,2)","v":31.36}]
["PAF",null,0,"x",0,"=",{"$f":"ROUND(C19*E19,2)","v":0}]
["Plano de saúde",null,0,"x",0,"=",{"$f":"ROUND(C20*E20,2)","v":0}]
["SESMT",null,1,"x",25,"=",{"$f":"ROUND(C21*E21,2)","v":25}]
["Seguro de vida",null,1,"x",3.8,"=",{"$f":"ROUND(C22*E22,2)","v":3.8}]
["Vale transporte (Deduzido 6%)",null,0,"x",3.5,"=",{"$f":"IF(E8*0.06<C23*E23,ROUND(C23*E23,2)-0.06*E8,0)","v":0}]
["Uniforme",null,{"$f":"C8","v":1},"x",40,"=",{"$f":"ROUND(C24*E24,2)","v":40}]
["Custo mensal unitário",null,null,null,null,null,{"$f":"SUM(G14:G24)","v":4682.66}]
[]
["OPERADOR DE MÁQUINAS - SICEPOT/SITICOP"]
["Salário mensal",null,1,"x",2400,"=",{"$f":"ROUND(C28*E28,2)","v":2400}]
["Insalubridade-G.Máximo",null,0.4,"x",1100,"=",{"$f":"ROUND(C29*E29,2)","v":440}]
["Hora extra 50%",null,0,"x",{"$f":"ROUND((E28/220)*1.5,2)","v":16.36},"=",{"$f":"ROUND(C30*E30,2)","v":0}]
["H.E Feriados",null,0,"x",{"$f":"ROUND((E28/220)*2,2)","v":21.82},"=",{"$f":"ROUND(C31*E31,2)","v":0}]
["Adicional H. Noturno",null,0,"x",{"$f":"(E28/220)*0.2","v":2.18181818181818},"=",{"$f":"ROUND(C32*E32,2)","v":0}]
["Encargos sociais",null,{"$f":"ENCARGOS!$C$43","v":0.7969},"x",{"$f":"SUM(G28:G32)","v":2840},"=",{"$f":"ROUND(C33*E33,2)","v":2263.2}]
["Salário mensal com encargos",null,null,null,null,null,{"$f":"SUM(G28:G33)","v":5103.2}]
["Vale refeição",null,22,"x",{"$f":"13.76*1.05","v":14.448},"=",{"$f":"ROUND(C35*E35,2)","v":317.86}]
["Cesta básica",null,1,"x",{"$f":"146*1.05","v":153.3},"=",{"$f":"ROUND(C36*E36,2)","v":153.3}]
["Cesta de gratificação férias  (1/12)",null,0,"x",{"$f":"E36/12","v":12.775},"=",{"$f":"ROUND(C37*E37,2)","v":0}]
["Cesta natalina (1/12)",null,0,"x",{"$f":"E36/12","v":12.775},"=",{"$f":"E38*C38","v":0}]
["PAF",null,1,"x",0,"=",{"$f":"ROUND(C39*E39,2)","v":0}]
["Plano de saúde",null,1,"x",0,"=",{"$f":"ROUND(C40*E40,2)","v":0}]
["SESMT",null,1,"x",25,"=",{"$f":"ROUND(C41*E41,2)","v":25}]
["Seguro de vida",null,1,"x",18,"=",{"$f":"ROUND(C42*E42,2)","v":18}]
["Vale transporte (deduzido 6%)",null,0,"x",3.5,"=",{"$f":"IF(E28*0.06<C43*E43,ROUND(C43*E43,2)-0.06*E28,0)","v":0}]
["Uniforme",null,{"$f":"C28","v":1},"x",40,"=",{"$f":"ROUND(C44*E44,2)","v":40}]
["Custo mensal unitário",null,null,null,null,null,{"$f":"SUM(G34:G44)","v":5657.36}]
[]
["RESUMO","QTDE","UNITÁRIO",null,"TOTAL"]
["MOTORISTA DE CAMINHÃO",0,{"$f":"G25","v":4682.66},"=",{"$f":"B48*C48","v":0}]
["OPERADOR DE EQUIPAMENTOS PESADOS",1,{"$f":"G45","v":5657.36},"=",{"$f":"B49*C49","v":5657.36}]
["TOTAL",null,null,null,{"$f":"SUM(E48:E49)","v":5657.36}]

{"sheet":"ENCARGOS","index":7,"n_rows":44,"n_cols":3,"rows_kept":44,"cut":false,"hidden":false,"merged":[[0,0,0,2],[3,0,3,1],[4,0,4,1],[5,0,5,1],[6,0,6,1],[7,0,7,1],[8,0,8,1],[9,0,9,1],[10,0,10,1],[11,0,11,1],[12,0,12,1],[13,0,13,1],[14,0,14,1],[17,0,17,1],[18,0,18,1],[19,0,19,1],[20,0,20,1],[21,0,21,1],[22,0,22,1],[23,0,23,1],[24,0,24,1],[25,0,25,1],[28,0,28,1],[29,0,29,1],[30,0,30,1],[31,0,31,1],[32,0,32,1],[34,0,34,1],[35,0,35,1],[36,0,36,1],[38,0,38,2],[39,0,39,1],[40,0,40,1]]}
["ENCARGOS SOCIAIS NO SETOR DE LIMPEZA PÚBLICA"]
[]
["GRUPO A - Básico"]
["INSS",null,0.2]
["FGTS",null,0.08]
["SENAI",null,0.01]
["SESI",null,0.015]
["INCRA",null,0.002]
["Salário Educação",null,0.025]
["Seguro acidente de trabalho (RAT 3,00 x FAP 2,00)",null,0.06]
["Contribuição Adicional por aposentadoria especial (25 anos)"]
["SEBRAE",null,0.006]
["Taxa assistencial",null,0]
["Sindicato patronal",null,0]
["TOTAL GRUPO A",null,{"$f":"ROUND(SUM(C4:C14),4)","v":0.398}]
[]
["GRUPO B - Encargos Sociais que recebem incidências do GRUPO A"]
["Férias (1/12x100) + (1/3/12x100)",null,0.1111]
["13º Salário",null,0.0833]
["Auxílio doença (15/30/12x0,0078)x100",null,0.0003]
["Faltas  justificadas (5/30/12)x100",null,0.0139]
["Faltas Legais (1/30/12)x100",null,0.0028]
["Aviso prévio traballhado (redução 7 dias) (7/30/12x100)",null,0.0194]
["Licença maternidade",null,0.0002]
["Licença paternidade (5/30/12x0,015x100)",null,0.0002]
["TOTAL GRUPO B",null,{"$f":"SUM(C18:C25)","v":0.2312}]
[]
["GRUPO C - Encargos Sociais que não recebem incidências do GRUPO A"]
["Multa FGTS (1x0,50x0,08x100)",null,0.04]
["Multa FGTS (0,05x0,50x0,08x100) - colaboradores substituídos",null,0.002]
["Indenização Art. 9, Lei 7238/84 (1/12x0,01)x100",null,0.0008]
["Feriados (12/365x100)",null,0.0329]
["TOTAL GRUPO C",null,{"$f":"SUM(C29:C32)","v":0.0757}]
[]
["GRUPO D - Taxas de reincidências"]
["Grupo A x Grupo B",null,{"$f":"C15*C26","v":0.0920176}]
["TOTAL GRUPO D",null,{"$f":"ROUND(C36,4)","v":0.092}]
[]
["GRUPO E - Encargos Sociais que recebem incidências do GRUPO A"]
["Indenização Art. 9, Lei 7238/84",null,0]
["TOTAL GRUPO E",null,{"$f":"ROUND(C40,4)","v":0}]
[]
["TOTAL GERAL DE ENCARGOS SOCIAIS",null,{"$f":"ROUND(C15+C26+C33+C37+C41,4)","v":0.7969}]
["ENCARGOS SOCIAIS CONFORME ACORDÃO 6.771/09 DO TCU"]

{"sheet":"ESTEIRA (inex)","index":8,"n_rows":40,"n_cols":12,"rows_kept":40,"cut":false,"hidden":true,"merged":[[0,0,0,6],[2,0,2,6],[4,0,4,2],[4,3,4,4],[6,0,6,5],[11,0,11,2],[11,3,12,3],[11,4,12,4],[11,5,12,5],[11,6,12,6],[18,0,18,2],[21,0,21,2],[24,0,24,2],[26,8,26,10],[26,11,27,11],[27,0,27,2],[28,0,28,2],[29,0,29,2],[30,4,30,5]]}
["PLANILHA ORÇAMENTÁRIA - TRATOR DE ESTEIRAS"]
[]
["1 - COMPOSIÇÃO DE CUSTO PARA  TRATOR sobre esteiras (TCPO 2013 - ITEM 22.700.9.14). Diesel, potência 150 HP (112 kW), com lâmina de angulagem e inclinação hidráulica com passo variável, capacidade da lâmina de 4,28 m3 - unidade: h prod, FATOR DE CARGA ALTO."]
[]
["PREÇO DE AQUISIÇÃO DO CHASSI ",null,null,300000]
[]
["Parâmetros de cálculo"]
["horas produtivas (mês)",{"$f":"6*25","v":150},"6 horas diárias"]
["horas improdutivas",{"$f":"(25*8)-B8","v":50}]
[]
["1.1 - CUSTO HORÁRIO PRODUTIVO (CHP)"]
["Trator de esteiras 150 HP",null,null,"UNIDADE","QUANT.","UNITÁRIO","TOTAL"]
["Componente","Referência","Descrição"]
["CUSTO","22700.10.1.99","DEPRECIAÇÃO","-",{"$f":"0.0000465/2","v":2.325E-005},{"$f":"$D$5","v":300000},{"$f":"E14*F14","v":6.975},null,{"$f":"G14*B8*12","v":12555},{"$f":"I14*5","v":62775},{"$f":"J14/D5","v":0.20925}]
["CUSTO","22700.11.1.101","JUROS DO CAPITAL - CUSTO FINANCEIRO","-",{"$f":"0.0000398/2","v":1.99E-005},{"$f":"$D$5","v":300000},{"$f":"E15*F15","v":5.97},null,{"$f":"G15*B8*12","v":10746},{"$f":"I15*5","v":53730},{"$f":"J15/D5","v":0.1791}]
["CUSTO","22700.12.1.100","MANUTENÇÃO","-",0.000132,{"$f":"$D$5","v":300000},{"$f":"E16*F16","v":39.6}]
["INSUMO","PRÓPRIO","COMBUSTÍVEL - ÓLEO DIESEL","L",12,4.45,{"$f":"E17*F17","v":53.4}]
["INSUMO","taxa","GRAXAS, LUBRIFICANTES, FILTROS (10% combustível)","-",0.1,{"$f":"G17","v":53.4},{"$f":"E18*F18","v":5.34}]
["TOTAL CHP",null,null,null,null,null,{"$f":"ROUND(SUM(G14:G18),2)","v":111.29}]
[]
["1.2  - CUSTO HORÁRIO IMPRODUTIVO (CHI)"]
["Trator de esteiras 150 HP",null,null,"UNIDADE","QUANT.","UNITÁRIO","TOTAL"]
["CUSTO","22700.11.1.101","JUROS DO CAPITAL - CUSTO FINANCEIRO","-",{"$f":"E15","v":1.99E-005},{"$f":"$D$5","v":300000},{"$f":"E23*F23","v":5.97}]
["CUSTO","22700.10.1.99","DEPRECIAÇÃO","-",{"$f":"E14","v":2.325E-005},{"$f":"$D$5","v":300000},{"$f":"E24*F24","v":6.975}]
["TOTAL CHI",null,null,null,null,null,{"$f":"ROUND(SUM(G23:G24),2)","v":12.95}]
[]
["2 - CÁLCULO DO CUSTO MENSAL INDIVIDUAL",null,null,null,null,null,null,null,"CUSTOS (1 EQUIPAMENTO)",null,null,"TOTAL SEM BDI (60 MESES)"]
["DESCRIÇÃO",null,null,"UNID.","QUANT.","UNITÁRIO","TOTAL",null,"Custo operacional","sem BDI","com BDI"]
["CUSTO PRODUTIVO",null,null,"EQUIP.",{"$f":"B8","v":150},{"$f":"G19","v":111.29},{"$f":"ROUND(F29*E29,2)","v":16693.5},null,"Combustível",{"$f":"ROUND(E29*G17,2)","v":8010},10418.36,{"$f":"J29*60","v":480600}]
["CUSTO IMPRODUTIVO",null,null,"EQUIP.",{"$f":"B9","v":50},{"$f":"G25","v":12.95},{"$f":"ROUND(F30*E30,2)","v":647.5},null,"Lubrificação",{"$f":"ROUND(E29*G18,2)","v":801},1041.84,{"$f":"J30*60","v":48060}]
[null,null,null,null,"CUSTO INDIVIDUAL MENSAL",null,{"$f":"SUM(G29:G30)","v":17341},null,"Pneumáticos",0,0,{"$f":"J31*60","v":0}]
[null,null,null,null,null,null,null,null,null,{"$f":"SUM(J29:J31)","v":8811},11460.2,{"$f":"J32*60","v":528660}]
[null,null,null,null,null,null,{"$f":"G31+'M.O. Aterro'!G45","v":22998.36},null,"Custo financeiro","sem BDI","com BDI"]
[null,null,null,null,null,null,{"$f":"G33*1.18","v":27138.0648},null,"Depreciação",{"$f":"ROUND(SUM($B$8:$B$9)*G14,2)","v":1395},5397.81,{"$f":"J34*60","v":83700}]
[null,null,null,null,null,null,null,null,"Financeiro",{"$f":"ROUND(SUM($B$8:$B$9)*G15,2)","v":1194},4620.06,{"$f":"J35*60","v":71640}]
[null,null,null,null,null,null,null,null,"Manutenção",{"$f":"ROUND(B8*G16,2)","v":5940},11492.12,{"$f":"J36*60","v":356400}]
[null,null,null,null,null,null,null,null,"Impostos/seguros",0,0,{"$f":"J37*60","v":0}]
[null,null,null,null,null,null,null,null,null,{"$f":"SUM(J34:J37)","v":8529},21509.99,{"$f":"J38*60","v":511740}]
[null,null,null,null,null,null,null,null,null,null,null,{"$f":"J39*60","v":0}]
[null,null,null,null,null,null,null,null,"TOTAL",{"$f":"J32+J38","v":17340},{"$f":"K32+K38","v":32970.19},{"$f":"J40*60","v":1040400}]

{"sheet":"ESTEIRA","index":9,"n_rows":31,"n_cols":7,"rows_kept":31,"cut":false,"hidden":false,"merged":[[0,0,0,6],[2,0,2,6],[4,0,4,2],[4,3,4,4],[6,0,6,5],[11,0,11,2],[11,3,12,3],[11,4,12,4],[11,5,12,5],[11,6,12,6],[18,0,18,2],[21,0,21,2],[24,0,24,2],[26,8,26,10],[26,11,27,11],[27,0,27,2],[28,0,28,2],[29,0,29,2],[30,4,30,5]]}
["PLANILHA ORÇAMENTÁRIA - TRATOR DE ESTEIRAS"]
[]
["1 - COMPOSIÇÃO DE CUSTO PARA  TRATOR sobre esteiras (TCPO 2013 - ITEM 22.700.9.14). Diesel, potência 150 HP (112 kW), com lâmina de angulagem e inclinação hidráulica com passo variável, capacidade da lâmina de 4,28 m3 - unidade: h prod, FATOR DE CARGA ALTO."]
[]
["PREÇO DE AQUISIÇÃO DO CHASSI ",null,null,300000]
[]
["Parâmetros de cálculo"]
["horas produtivas (mês)",{"$f":"6*25","v":150},"6 horas diárias"]
["horas improdutivas",{"$f":"(25*8)-B8","v":50}]
[]
["1.1 - CUSTO HORÁRIO PRODUTIVO (CHP)"]
["Trator de esteiras 150 HP",null,null,"UNIDADE","QUANT.","UNITÁRIO","TOTAL"]
["Componente","Referência","Descrição"]
["CUSTO","22700.10.1.99","DEPRECIAÇÃO","-",4.65E-005,{"$f":"$D$5","v":300000},{"$f":"E14*F14","v":13.95}]
["CUSTO","22700.11.1.101","JUROS DO CAPITAL - CUSTO FINANCEIRO","-",3.98E-005,{"$f":"$D$5","v":300000},{"$f":"E15*F15","v":11.94}]
["CUSTO","22700.12.1.100","MANUTENÇÃO","-",0.000132,{"$f":"$D$5","v":300000},{"$f":"E16*F16","v":39.6}]
["INSUMO","PRÓPRIO","COMBUSTÍVEL - ÓLEO DIESEL","L",15,4.45,{"$f":"E17*F17","v":66.75}]
["INSUMO","taxa","GRAXAS, LUBRIFICANTES, FILTROS (10% combustível)","-",0.1,{"$f":"G17","v":66.75},{"$f":"E18*F18","v":6.675}]
["TOTAL CHP",null,null,null,null,null,{"$f":"ROUND(SUM(G14:G18),2)","v":138.92}]
[]
["1.2  - CUSTO HORÁRIO IMPRODUTIVO (CHI)"]
["Trator de esteiras 150 HP",null,null,"UNIDADE","QUANT.","UNITÁRIO","TOTAL"]
["CUSTO","22700.11.1.101","JUROS DO CAPITAL - CUSTO FINANCEIRO","-",{"$f":"E15","v":3.98E-005},{"$f":"$D$5","v":300000},{"$f":"E23*F23","v":11.94}]
["CUSTO","22700.10.1.99","DEPRECIAÇÃO","-",{"$f":"E14","v":4.65E-005},{"$f":"$D$5","v":300000},{"$f":"E24*F24","v":13.95}]
["TOTAL CHI",null,null,null,null,null,{"$f":"ROUND(SUM(G23:G24),2)","v":25.89}]
[]
["2 - CÁLCULO DO CUSTO MENSAL INDIVIDUAL"]
["DESCRIÇÃO",null,null,"UNID.","QUANT.","UNITÁRIO","TOTAL"]
["CUSTO PRODUTIVO",null,null,"EQUIP.",{"$f":"B8","v":150},{"$f":"G19","v":138.92},{"$f":"ROUND(F29*E29,2)","v":20838}]
["CUSTO IMPRODUTIVO",null,null,"EQUIP.",{"$f":"B9","v":50},{"$f":"G25","v":25.89},{"$f":"ROUND(F30*E30,2)","v":1294.5}]
[null,null,null,null,"CUSTO INDIVIDUAL MENSAL",null,{"$f":"SUM(G29:G30)","v":22132.5}]

{"sheet":"PICKUP","index":10,"n_rows":45,"n_cols":7,"rows_kept":45,"cut":false,"hidden":false,"merged":[[0,0,0,6],[2,0,2,6],[4,0,4,5],[5,3,5,4],[6,3,6,4],[7,0,7,3],[7,4,7,5],[9,0,9,5],[10,3,10,4],[11,3,11,4],[12,3,12,4],[13,3,13,4],[14,3,14,4],[15,3,15,4],[18,0,18,2],[19,1,19,2],[20,1,20,2],[21,1,21,2],[22,1,22,2],[23,1,23,2],[24,1,24,2],[25,1,25,2],[26,0,26,2],[29,0,29,2],[30,1,30,2],[31,1,31,2],[32,0,32,2],[34,8,34,10],[34,11,35,11],[35,0,35,2],[36,0,36,2],[37,0,37,2],[38,4,38,5],[41,0,41,2],[42,0,42,2],[43,0,43,2],[44,4,44,5]]}
["PLANILHA ORÇAMENTÁRIA - UTILITÁRIO PICK UP"]
[]
["1 - COMPOSIÇÃO DE CUSTO PARA UTILITÁRIO PICKUP"]
[]
["PREÇOS DE AQUISIÇÃO"]
["MARCA","ANO","MODELO","PREÇO UNITÁRIO",null,"REFERÊNCIA"]
["FIAT",2016,"Strada Working 1.4 mpi Fire Flex 8V CD",47127,null,"FIPE"]
["PREÇO DE AQUISIÇÃO DO CHASSI ",null,null,null,{"$f":"D7","v":47127}]
[]
["Parâmetros de cálculo"]
["horas produtivas (mês)",{"$f":"25*2","v":50},"2 HORAS DIÁRIAS","Manutenção (K)",null,0.9]
["horas improdutivas",{"$f":"(24*30)-B11","v":670},null,"Vida útil em anos",null,5]
["Potência (HP)",null,null,"Vida útil em horas",null,{"$f":"F12*12*B11","v":3000}]
["Percurso (km/mês)",{"$f":"25*30","v":750},"30 KM/DIA","Taxa de juros anual",null,0.05]
["Vel. média (km/h)",{"$f":"B14/B11","v":15},null,"Fator depreciação",null,0.4]
["Rendimento (km/L)",10,null,"Vida dos pneus",null,40000]
[]
["1.1 - CUSTO HORÁRIO PRODUTIVO (CHP)"]
["PICKUP FLEX",null,null,"UNIDADE","QUANT.","UNITÁRIO","TOTAL"]
["INSUMO",{"$f":"\"MANUTENÇÃO (\"&F11*100&\"% do preço de aquisição em 5 anos)\"","v":"MANUTENÇÃO (90% do preço de aquisição em 5 anos)"},null,"UN",{"$f":"(F11/(B11*F12*12))","v":0.0003},{"$f":"E8","v":47127},{"$f":"F20*E20","v":14.1381}]
["INSUMO","COMBUSTIVEL GASOLINA COMUM",null,"L",{"$f":"(B15/B16)","v":1.5},5.99,{"$f":"F21*E21","v":8.985}]
["INSUMO","GRAXAS, ÓLEOS LUBRIFICANTES, FILTROS (10% sobre combustível)",null,"UN",0.1,{"$f":"G21","v":8.985},{"$f":"F22*E22","v":0.8985}]
["INSUMO","MATERIAL RODANTE",null,"UN",{"$f":"B15/$F$16","v":0.000375},{"$f":"5*350","v":1750},{"$f":"F23*E23","v":0.65625}]
["INSUMO",{"$f":"\"DEPRECIAÇÃO CHASSI (\"&F15*100&\"% preço aquisição em 5 anos)\"","v":"DEPRECIAÇÃO CHASSI (40% preço aquisição em 5 anos)"},null,"UN",{"$f":"(F15/(B11*F12*12))*(B11/SUM(B11:B12))","v":9.25925925925926E-006},{"$f":"AVERAGE(D7:E7)","v":47127},{"$f":"F24*E24","v":0.436361111111111}]
["INSUMO","REMUNERAÇÃO DO CAPITAL (aldo matos)",null,"UN ",{"$f":"((((F15*E8)*(F12+1)/(2*F12))+((1-F15)*E8))*F14)/(F13/F12)/F25","v":7E-005},{"$f":"E8","v":47127},{"$f":"F25*E25","v":3.29889}]
["INSUMO","IMPOSTOS E SEGUROS (1% IPVA; TRLAV R$ 112,40, 4% SEGURO)",null,"UN",{"$f":"((0.04+0.01)/(B11*12)+(112.4/(F26*B11*12)))*(B11/SUM(B11:B12))","v":6.06308387344206E-006},{"$f":"F24","v":47127},{"$f":"F26*E26","v":0.285734953703704}]
["TOTAL CHP",null,null,null,null,null,{"$f":"ROUND(SUM(G20:G26),2)","v":28.7}]
[]
["1.2  - CUSTO HORÁRIO IMPRODUTIVO (CHI)"]
["PICKUP FLEX",null,null,"UNIDADE","QUANT.","UNITÁRIO","TOTAL"]
["INSUMO",{"$f":"\"DEPRECIAÇÃO CHASSI (\"&F15*100&\"% preço aquisição em 5 anos)\"","v":"DEPRECIAÇÃO CHASSI (40% preço aquisição em 5 anos)"},null,"UN",{"$f":"(F15/(B12*(F12*12)))*(B12/720)","v":9.25925925925926E-006},{"$f":"AVERAGE(D7:E7)","v":47127},{"$f":"F31*E31","v":0.436361111111111}]
["INSUMO","IMPOSTOS E SEGUROS (1% IPVA; DPVAT R$ 70.00; TRLAV R$ 92,66, 4% SEGURO)",null,"UN",{"$f":"((0.04+0.01)/(B11*12)+(162.66/(F32*B11*12)))*(B11/SUM(B11:B12))","v":6.18651905135768E-006},{"$f":"F24","v":47127},{"$f":"F32*E32","v":0.291552083333333}]
["TOTAL CHI",null,null,null,null,null,{"$f":"ROUND(SUM(G31:G32),2)","v":0.73}]
[]
["2 - CÁLCULO DO CUSTO MENSAL INDIVIDUAL DA PICKUP"]
["DESCRIÇÃO",null,null,"UNID.","QUANT.","UNITÁRIO","TOTAL"]
["CUSTO PRODUTIVO",null,null,"EQUIP.",{"$f":"B11","v":50},{"$f":"G27","v":28.7},{"$f":"ROUND(F37*E37,2)","v":1435}]
["CUSTO IMPRODUTIVO",null,null,"EQUIP.",{"$f":"B12","v":670},{"$f":"G33","v":0.73},{"$f":"ROUND(F38*E38,2)","v":489.1}]
[null,null,null,null,"CUSTO INDIVIDUAL MENSAL",null,{"$f":"SUM(G37:G38)","v":1924.1}]
[]
["3 - CÁLCULO DO CUSTO MENSAL TOTAL DA PICKUP"]
["DESCRIÇÃO",null,null,"UNID.","QUANT.","UNITÁRIO","TOTAL"]
["CUSTO PRODUTIVO",null,null,"EQUIP.",1,{"$f":"G37","v":1435},{"$f":"ROUND(F43*E43,2)","v":1435}]
["CUSTO IMPRODUTIVO",null,null,"EQUIP.",1,{"$f":"G38","v":489.1},{"$f":"ROUND(F44*E44,2)","v":489.1}]
[null,null,null,null,"CUSTO TOTAL MENSAL",null,{"$f":"SUM(G43:G44)","v":1924.1}]

{"sheet":"BDI","index":11,"n_rows":37,"n_cols":10,"rows_kept":37,"cut":false,"hidden":false,"merged":[[0,0,0,10],[1,0,1,8],[2,0,2,10],[3,0,3,10],[4,0,4,10],[28,0,28,9],[36,1,37,2],[36,3,37,4],[38,0,39,10]]}
["PREFEITURA MUNICIPAL DE CARMO DO PARANAÍBA-MG"]
["COMPOSIÇÃO DO BDI DE FORMA ANALÍTICA"]
[{"$f":"ORÇAMENTO!A3:I3","v":"EXECUÇÃO DE VALA SANITÁRIA e LAGOAS DE ESTABILIZAÇÃO - ATERRO CONTROLADO"}]
["OBRAS DE INFRAESTRUTURA"]
[{"$f":"ORÇAMENTO!A4:I4","v":"Carmo do Paranaíba - MG"}]
["1) ADMINISTRAÇÃO CENTRAL - ( 3,00% a 5,50%)"]
[]
[null,0.055]
[null,null,null,null,null,"Adm. Central, Seguros e Garantias, Riscos",null,null,null,{"$f":"1+(B8+B12+B17)","v":1.076}]
["2) SEGUROS E GARANTIAS - ( 0,80% a 1,00%)",null,null,null,null,"Despesas Financeiras",null,null,null,{"$f":"1+B21","v":1.012}]
[null,null,null,null,null,"Lucro/Remuneração",null,null,null,{"$f":"1+B25","v":1.0831}]
[null,0.009,null,null,null,"Impostos (com desoneração)",null,null,null,{"$f":"1-C32-E32-G32","v":0.9335}]
[null,null,null,null,null,"Impostos (sem desoneração)",null,null,null,{"$f":"1-C32-E32-G32","v":0.9335}]
[]
["3) RISCOS - ( 0,97% a 1,27%)"]
[]
[null,0.012]
[]
["4) DESPESAS FINANCEIRAS - ( 0,59% a 1,39%)"]
[]
[null,0.012]
[]
["5) LUCRO/REMUNERAÇÃO - (6,16% a 8,96%)"]
[]
[null,0.0831]
[]
["6) IMPOSTOS"]
["Os valores dos índices dos impostos serão os indicados abaixo, não podem ser alterados."]
["ISS =  2% - Justificado pela Legislação Tributária Municipal com apresentação da base de cálculo da alíquota."]
[]
[]
[null,"COFINS=",0.03,"PIS=",0.0065,"ISS=",0.03]
[]
[]
["Sem desoneração:",null,"SINAPI ABRIL/2021"]
[]
[null,"BDI=",null,{"$f":"(J9*J10*J11/J12)-1","v":0.263417875950723}]